[Event "Early-Titled-Tuesday-Blitz-February-13-2024"]
[Site "Chess.com"]
[Date "2024.02.13"]
[Round "8"]
[White "treadstone_71"]
[Black "Crazy_girl99"]
[Result "0-1"]
[WhiteElo "2320"]
[BlackElo "2600"]
[TimeControl "180+1"]
[EndTime "9:31:23 PST"]
[Termination "Crazy_girl99 won by resignation"]

1. e4 {[%clk 0:03:00.9]} 1... e5 {[%clk 0:03:00.2]} 2. Nf3 {[%clk 0:03:00.1]}
2... Nc6 {[%clk 0:03:00.9]} 3. d4 {[%clk 0:03:00.5]} 3... exd4 {[%clk
0:02:59.8]} 4. Nxd4 {[%clk 0:03:01.4]} 4... Nf6 {[%clk 0:02:59.4]} 5. Nxc6
{[%clk 0:03:00.1]} 5... bxc6 {[%clk 0:02:59.7]} 6. e5 {[%clk 0:03:00.5]} 6...
Qe7 {[%clk 0:03:00]} 7. Qe2 {[%clk 0:03:01.1]} 7... Nd5 {[%clk 0:03:00.2]} 8. c4
{[%clk 0:03:01.7]} 8... Ba6 {[%clk 0:02:59.9]} 9. Nd2 {[%clk 0:03:02.3]} 9... g6
{[%clk 0:02:58.4]} 10. b3 {[%clk 0:03:01.3]} 10... Bg7 {[%clk 0:02:58.3]} 11.
Bb2 {[%clk 0:03:01.7]} 11... O-O {[%clk 0:02:56.9]} 12. O-O-O {[%clk 0:03:01.6]}
12... Nb6 {[%clk 0:02:52.4]} 13. f4 {[%clk 0:02:55.5]} 13... Rfe8 {[%clk
0:02:51.3]} 14. Qf2 {[%clk 0:02:30.4]} 14... d5 {[%clk 0:02:45]} 15. cxd5 {[%clk
0:02:16.3]} 15... Bxf1 {[%clk 0:02:44.6]} 16. Rhxf1 {[%clk 0:02:17.2]} 16...
Nxd5 {[%clk 0:02:43.3]} 17. Ne4 {[%clk 0:01:49.2]} 17... a5 {[%clk 0:02:41.3]}
18. g3 {[%clk 0:01:41.1]} 18... a4 {[%clk 0:02:41.4]} 19. Qc5 {[%clk 0:01:41.2]}
19... Qe6 {[%clk 0:02:19.9]} 20. Rf3 {[%clk 0:00:47.5]} 20... axb3 {[%clk
0:02:14.6]} 21. axb3 {[%clk 0:00:48.4]} 21... Qf5 {[%clk 0:02:03.4]} 22. Nc3
{[%clk 0:00:43]} 22... Bxe5 {[%clk 0:01:58.6]} 23. Nxd5 {[%clk 0:00:39.1]} 23...
Bxb2+ {[%clk 0:01:58.3]} 24. Kxb2 {[%clk 0:00:39.5]} 24... cxd5 {[%clk
0:01:55.9]} 25. Rf2 {[%clk 0:00:18.9]} 25... Qf6+ {[%clk 0:01:31.6]} 26. Qd4
{[%clk 0:00:18.6]} 26... Qa6 {[%clk 0:01:31.5]} 27. Kb1 {[%clk 0:00:07.9]} 27...
Re2 {[%clk 0:01:20.9]} 28. Rxe2 {[%clk 0:00:07.4]} 28... Qxe2 {[%clk 0:01:21.1]}
29. Qd2 {[%clk 0:00:06.3]} 29... Qe4+ {[%clk 0:01:17.8]} 30. Qd3 {[%clk
0:00:06.6]} 30... Qg2 {[%clk 0:01:15.2]} 31. Qd2 {[%clk 0:00:06.6]} 31... Qf3
{[%clk 0:01:09]} 32. Qd3 {[%clk 0:00:06.4]} 32... Qf2 {[%clk 0:01:09.3]} 33. Qd2
{[%clk 0:00:06.7]} 33... Qa7 {[%clk 0:00:58.5]} 34. Qxd5 {[%clk 0:00:06.9]}
34... Qa1+ {[%clk 0:00:51.6]} 35. Kc2 {[%clk 0:00:07.4]} 35... Ra2+ {[%clk
0:00:51.8]} 36. Kd3 {[%clk 0:00:07.3]} 36... Qxd1+ {[%clk 0:00:52.3]} 0-1

[Event "Early-Titled-Tuesday-Blitz-February-13-2024"]
[Site "Chess.com"]
[Date "2024.02.13"]
[Round "8"]
[White "Yeritsyaan"]
[Black "Road2GM3000"]
[Result "1/2-1/2"]
[WhiteElo "2606"]
[BlackElo "2476"]
[TimeControl "180+1"]
[EndTime "9:31:29 PST"]
[Termination "Game drawn by agreement"]

1. c4 {[%clk 0:03:00.9]} 1... c5 {[%clk 0:02:55.5]} 2. Nc3 {[%clk 0:02:55]} 2...
Nc6 {[%clk 0:02:55.6]} 3. g3 {[%clk 0:02:50.7]} 3... g6 {[%clk 0:02:55.5]} 4.
Bg2 {[%clk 0:02:51.1]} 4... Bg7 {[%clk 0:02:56.2]} 5. d3 {[%clk 0:02:50.5]} 5...
e5 {[%clk 0:02:56.1]} 6. e3 {[%clk 0:02:41.4]} 6... Nge7 {[%clk 0:02:56.7]} 7.
Nge2 {[%clk 0:02:42.1]} 7... O-O {[%clk 0:02:57.1]} 8. O-O {[%clk 0:02:42.5]}
8... f5 {[%clk 0:02:53.4]} 9. f4 {[%clk 0:02:42.2]} 9... d6 {[%clk 0:02:51]} 10.
a3 {[%clk 0:02:38]} 10... Be6 {[%clk 0:02:51.5]} 11. Rb1 {[%clk 0:02:38]} 11...
a5 {[%clk 0:02:51.3]} 12. Qa4 {[%clk 0:02:36.1]} 12... d5 {[%clk 0:02:39.2]} 13.
cxd5 {[%clk 0:02:35.2]} 13... Nxd5 {[%clk 0:02:35.4]} 14. Nxd5 {[%clk
0:02:35.7]} 14... Bxd5 {[%clk 0:02:35.8]} 15. e4 {[%clk 0:02:32.6]} 15... Be6
{[%clk 0:02:27.1]} 16. fxe5 {[%clk 0:02:27.3]} 16... Qxd3 {[%clk 0:02:16.7]} 17.
Nf4 {[%clk 0:02:22]} 17... Qd4+ {[%clk 0:02:03.2]} 18. Qxd4 {[%clk 0:02:21.5]}
18... Nxd4 {[%clk 0:02:04.1]} 19. Nxe6 {[%clk 0:02:21.1]} 19... Nxe6 {[%clk
0:02:04.1]} 20. exf5 {[%clk 0:02:21.7]} 20... Rxf5 {[%clk 0:01:59.5]} 21. Rxf5
{[%clk 0:02:17.3]} 21... gxf5 {[%clk 0:02:00.4]} 22. Bxb7 {[%clk 0:02:17.6]}
22... Rd8 {[%clk 0:01:57.3]} 23. Bf4 {[%clk 0:02:00.9]} 23... Nxf4 {[%clk
0:01:44.1]} 24. gxf4 {[%clk 0:02:01.8]} 24... Rd4 {[%clk 0:01:43.9]} 25. Re1
{[%clk 0:01:44.9]} 25... Kf8 {[%clk 0:01:36.1]} 26. Rc1 {[%clk 0:01:38]} 26...
c4 {[%clk 0:01:35.6]} 27. Ba6 {[%clk 0:01:29.4]} 27... Rxf4 {[%clk 0:01:32.7]}
28. Rxc4 {[%clk 0:01:23.4]} 28... Rxc4 {[%clk 0:01:31.3]} 29. Bxc4 {[%clk
0:01:24.3]} 29... Bxe5 {[%clk 0:01:30.8]} 30. b4 {[%clk 0:01:25]} 30... axb4
{[%clk 0:01:29.8]} 31. axb4 {[%clk 0:01:25.9]} 31... Ke7 {[%clk 0:01:26.3]} 32.
Kg2 {[%clk 0:01:23.8]} 32... h5 {[%clk 0:01:14.3]} 33. h4 {[%clk 0:01:17.9]}
33... Bc3 {[%clk 0:01:03.6]} 34. b5 {[%clk 0:01:16.9]} 34... Kd6 {[%clk
0:01:01.2]} 35. Be2 {[%clk 0:01:03.7]} 35... Kc5 {[%clk 0:00:59.8]} 36. Bd3
{[%clk 0:00:53.5]} 36... Be1 {[%clk 0:00:52.9]} 37. Kh3 {[%clk 0:00:53.9]} 37...
f4 {[%clk 0:00:51.1]} 38. Be2 {[%clk 0:00:53.9]} 38... Bf2 {[%clk 0:00:50.5]}
39. Bxh5 {[%clk 0:00:47.7]} 39... Kxb5 {[%clk 0:00:47.6]} 40. Be2+ {[%clk
0:00:47.2]} 40... Kc6 {[%clk 0:00:47.7]} 41. h5 {[%clk 0:00:48]} 41... Kd6
{[%clk 0:00:46.9]} 42. Kg4 {[%clk 0:00:43.2]} 42... Ke7 {[%clk 0:00:45.7]} 43.
Kg5 {[%clk 0:00:39]} 43... Kf8 {[%clk 0:00:42.6]} 44. Kg6 {[%clk 0:00:38.5]}
44... Kg8 {[%clk 0:00:42.6]} 45. Bf3 {[%clk 0:00:37.7]} 45... Kh8 {[%clk
0:00:43]} 1/2-1/2

[Event "Early-Titled-Tuesday-Blitz-February-13-2024"]
[Site "Chess.com"]
[Date "2024.02.13"]
[Round "8"]
[White "cyrdap"]
[Black "RantomOpening"]
[Result "1-0"]
[WhiteElo "2636"]
[BlackElo "2486"]
[TimeControl "180+1"]
[EndTime "9:31:30 PST"]
[Termination "cyrdap won by resignation"]

1. e4 {[%clk 0:03:00.9]} 1... c5 {[%clk 0:02:48.8]} 2. Nf3 {[%clk 0:02:59.8]}
2... e6 {[%clk 0:02:48.8]} 3. d4 {[%clk 0:03:00.1]} 3... cxd4 {[%clk 0:02:49.7]}
4. Nxd4 {[%clk 0:03:00.4]} 4... Nf6 {[%clk 0:02:50]} 5. Nc3 {[%clk 0:02:59.5]}
5... Nc6 {[%clk 0:02:50.5]} 6. Bf4 {[%clk 0:02:57.6]} 6... Bb4 {[%clk
0:02:49.9]} 7. Nb5 {[%clk 0:02:56.1]} 7... O-O {[%clk 0:02:43.7]} 8. Bc7 {[%clk
0:02:55.1]} 8... Qe7 {[%clk 0:02:42.7]} 9. Bd6 {[%clk 0:02:55.3]} 9... Bxd6
{[%clk 0:02:42.8]} 10. Qxd6 {[%clk 0:02:55.4]} 10... Qd8 {[%clk 0:02:43]} 11.
O-O-O {[%clk 0:02:52]} 11... a6 {[%clk 0:02:43.4]} 12. Nd4 {[%clk 0:02:48.2]}
12... Ne7 {[%clk 0:02:43.8]} 13. f3 {[%clk 0:02:46.7]} 13... b5 {[%clk
0:02:43.4]} 14. Nb3 {[%clk 0:02:45.1]} 14... Bb7 {[%clk 0:02:37.7]} 15. Bd3
{[%clk 0:02:36.6]} 15... Ne8 {[%clk 0:02:35.1]} 16. Qd4 {[%clk 0:02:35.3]} 16...
d6 {[%clk 0:02:31.5]} 17. Qe3 {[%clk 0:02:32.1]} 17... d5 {[%clk 0:02:29.7]} 18.
Nc5 {[%clk 0:02:31]} 18... d4 {[%clk 0:02:25.1]} 19. Nxb7 {[%clk 0:02:27.8]}
19... Qb6 {[%clk 0:02:22.5]} 20. Qf2 {[%clk 0:02:24]} 20... e5 {[%clk
0:02:01.7]} 21. Nd5 {[%clk 0:02:12.7]} 21... Qxb7 {[%clk 0:01:58.1]} 22. Qh4
{[%clk 0:02:10.9]} 22... Ng6 {[%clk 0:01:54.6]} 23. Qg3 {[%clk 0:02:10.9]} 23...
Nc7 {[%clk 0:01:51.1]} 24. h4 {[%clk 0:02:08.1]} 24... Nxd5 {[%clk 0:01:39.3]}
25. exd5 {[%clk 0:02:07.7]} 25... Nf4 {[%clk 0:01:39.4]} 26. Rhe1 {[%clk
0:02:07.7]} 26... Nxd3+ {[%clk 0:00:54.6]} 27. Rxd3 {[%clk 0:02:06.9]} 27... f6
{[%clk 0:00:55]} 28. f4 {[%clk 0:02:04.5]} 28... Qxd5 {[%clk 0:00:55.3]} 29.
fxe5 {[%clk 0:02:02.4]} 29... Qxa2 {[%clk 0:00:53.9]} 30. Ra3 {[%clk 0:01:54.5]}
30... Qd5 {[%clk 0:00:46]} 31. e6 {[%clk 0:01:51.3]} 31... Rfe8 {[%clk 0:00:43]}
32. Qg4 {[%clk 0:01:47.7]} 32... f5 {[%clk 0:00:34.1]} 33. Qe2 {[%clk
0:01:47.4]} 33... Rac8 {[%clk 0:00:31.9]} 34. Kb1 {[%clk 0:01:31.4]} 34... Rc6
{[%clk 0:00:29.5]} 35. e7 {[%clk 0:01:20.1]} 35... Kf7 {[%clk 0:00:28.2]} 36.
Qh5+ {[%clk 0:01:18.7]} 36... g6 {[%clk 0:00:22.9]} 37. Qxh7+ {[%clk 0:01:18.3]}
37... Kf6 {[%clk 0:00:16.2]} 38. Rg3 {[%clk 0:01:17.4]} 38... Qf7 {[%clk
0:00:12.8]} 39. Qh6 {[%clk 0:01:16.5]} 39... Re6 {[%clk 0:00:11.4]} 40. Rxg6+
{[%clk 0:01:12.3]} 40... Qxg6 {[%clk 0:00:07.6]} 41. Rxe6+ {[%clk 0:01:12]}
41... Kxe6 {[%clk 0:00:07.5]} 42. Qxg6+ {[%clk 0:01:12.2]} 42... Kxe7 {[%clk
0:00:08.4]} 43. Qxf5 {[%clk 0:01:11.7]} 43... d3 {[%clk 0:00:08.3]} 44. Qxd3
{[%clk 0:01:11.5]} 1-0

[Event "Early-Titled-Tuesday-Blitz-February-13-2024"]
[Site "Chess.com"]
[Date "2024.02.13"]
[Round "8"]
[White "amiqu"]
[Black "Louis-Paulsen-Fan"]
[Result "1-0"]
[WhiteElo "2081"]
[BlackElo "2263"]
[TimeControl "180+1"]
[EndTime "9:31:32 PST"]
[Termination "amiqu won by resignation"]

1. d4 {[%clk 0:03:00.9]} 1... d5 {[%clk 0:02:48.9]} 2. c4 {[%clk 0:03:00.2]}
2... e6 {[%clk 0:02:49.5]} 3. Nc3 {[%clk 0:02:55.9]} 3... c5 {[%clk 0:02:49.7]}
4. cxd5 {[%clk 0:02:55.4]} 4... exd5 {[%clk 0:02:50.6]} 5. Nf3 {[%clk
0:02:55.2]} 5... Nc6 {[%clk 0:02:50.9]} 6. dxc5 {[%clk 0:02:55.2]} 6... d4
{[%clk 0:02:50.1]} 7. Na4 {[%clk 0:02:55.8]} 7... Bxc5 {[%clk 0:02:49.5]} 8.
Nxc5 {[%clk 0:02:56.3]} 8... Qa5+ {[%clk 0:02:49.7]} 9. Bd2 {[%clk 0:02:57]}
9... Qxc5 {[%clk 0:02:50.1]} 10. Rc1 {[%clk 0:02:57.7]} 10... Qb6 {[%clk
0:02:50.5]} 11. e3 {[%clk 0:02:58.5]} 11... Nf6 {[%clk 0:02:49.6]} 12. Bc4
{[%clk 0:02:58.9]} 12... O-O {[%clk 0:02:48.3]} 13. O-O {[%clk 0:02:59.1]} 13...
Bg4 {[%clk 0:02:47.9]} 14. exd4 {[%clk 0:02:39.2]} 14... Nxd4 {[%clk 0:02:17.8]}
15. Be3 {[%clk 0:02:38.3]} 15... Bxf3 {[%clk 0:02:16.7]} 16. Bxd4 {[%clk
0:02:32.9]} 16... Bxd1 {[%clk 0:02:11.6]} 17. Bxb6 {[%clk 0:02:32.8]} 17... Bg4
{[%clk 0:02:00.8]} 18. Be3 {[%clk 0:02:32.6]} 18... Rfd8 {[%clk 0:01:52.7]} 19.
h3 {[%clk 0:02:32.2]} 19... Be6 {[%clk 0:01:50.5]} 20. Bxe6 {[%clk 0:02:26.8]}
20... fxe6 {[%clk 0:01:51.4]} 21. Rc7 {[%clk 0:02:27.1]} 21... Rd7 {[%clk
0:01:50.5]} 22. Rfc1 {[%clk 0:02:27.7]} 22... Rad8 {[%clk 0:01:49.4]} 23. Bxa7
{[%clk 0:02:25.8]} 23... b5 {[%clk 0:01:34]} 24. a3 {[%clk 0:01:59.7]} 24...
Rxc7 {[%clk 0:01:19]} 25. Rxc7 {[%clk 0:01:59.1]} 25... Rd2 {[%clk 0:00:56.9]}
26. b4 {[%clk 0:01:39.7]} 26... Rd3 {[%clk 0:00:56.6]} 27. Rb7 {[%clk 0:01:36]}
27... Rxa3 {[%clk 0:00:56.1]} 28. Bc5 {[%clk 0:01:36.6]} 28... Ne4 {[%clk
0:00:33.1]} 29. Rxb5 {[%clk 0:01:35.4]} 29... Rb3 {[%clk 0:00:31]} 30. Rb6
{[%clk 0:01:18.3]} 30... Kf7 {[%clk 0:00:28.5]} 31. Bd4 {[%clk 0:01:12.3]} 31...
g5 {[%clk 0:00:24.1]} 32. Rb7+ {[%clk 0:01:01]} 32... Kg6 {[%clk 0:00:23.2]} 33.
Rg7+ {[%clk 0:00:53.6]} 33... Kh6 {[%clk 0:00:20.1]} 34. Re7 {[%clk 0:00:50]}
34... Nd2 {[%clk 0:00:15.6]} 35. Rxe6+ {[%clk 0:00:48.3]} 35... Kh5 {[%clk
0:00:15.4]} 36. g4+ {[%clk 0:00:48]} 1-0

[Event "Early-Titled-Tuesday-Blitz-February-13-2024"]
[Site "Chess.com"]
[Date "2024.02.13"]
[Round "8"]
[White "The_Straightforward_Rook"]
[Black "lucasran"]
[Result "0-1"]
[WhiteElo "2423"]
[BlackElo "2677"]
[TimeControl "180+1"]
[EndTime "9:31:33 PST"]
[Termination "lucasran won by checkmate"]

1. Nf3 {[%clk 0:03:00.9]} 1... Nf6 {[%clk 0:02:52.7]} 2. d4 {[%clk 0:03:01]}
2... b6 {[%clk 0:02:52.9]} 3. c4 {[%clk 0:02:54.1]} 3... e6 {[%clk 0:02:52.4]}
4. g3 {[%clk 0:02:54.1]} 4... Bb7 {[%clk 0:02:52.6]} 5. Bg2 {[%clk 0:02:53.8]}
5... Be7 {[%clk 0:02:53.2]} 6. d5 {[%clk 0:02:54.2]} 6... exd5 {[%clk
0:02:52.5]} 7. Nd4 {[%clk 0:02:54.5]} 7... c6 {[%clk 0:02:43.6]} 8. cxd5 {[%clk
0:02:53.6]} 8... Nxd5 {[%clk 0:02:43.8]} 9. e4 {[%clk 0:02:54.3]} 9... Nc7
{[%clk 0:02:42.9]} 10. O-O {[%clk 0:02:54]} 10... O-O {[%clk 0:02:42.1]} 11. Nc3
{[%clk 0:02:54.3]} 11... d5 {[%clk 0:02:40.6]} 12. exd5 {[%clk 0:02:50.6]} 12...
cxd5 {[%clk 0:02:40.7]} 13. Bf4 {[%clk 0:02:50.3]} 13... Nba6 {[%clk 0:02:40.5]}
14. Qg4 {[%clk 0:02:44.5]} 14... Bf6 {[%clk 0:02:39.4]} 15. Rad1 {[%clk
0:02:42.8]} 15... Bc8 {[%clk 0:02:01.5]} 16. Qf3 {[%clk 0:02:39.4]} 16... Be6
{[%clk 0:01:59.8]} 17. h4 {[%clk 0:02:32.5]} 17... Qd7 {[%clk 0:01:52.7]} 18.
Rd2 {[%clk 0:02:21.5]} 18... Bg4 {[%clk 0:01:47.4]} 19. Qd3 {[%clk 0:02:17.8]}
19... Nc5 {[%clk 0:01:42.4]} 20. Qb1 {[%clk 0:02:13.2]} 20... Bxd4 {[%clk
0:01:42]} 21. Rxd4 {[%clk 0:02:12.7]} 21... N5e6 {[%clk 0:01:41.3]} 22. Rd2
{[%clk 0:01:36.9]} 22... Nxf4 {[%clk 0:01:40.9]} 23. gxf4 {[%clk 0:01:37.8]}
23... Bh3 {[%clk 0:01:27.8]} 24. Nxd5 {[%clk 0:01:37.8]} 24... Nxd5 {[%clk
0:01:19.1]} 25. Rxd5 {[%clk 0:01:38.7]} 25... Qg4 {[%clk 0:01:06.4]} 26. Rg5
{[%clk 0:01:38.5]} 26... Qxh4 {[%clk 0:01:06]} 27. Qd3 {[%clk 0:01:30.3]} 27...
Bxg2 {[%clk 0:01:02.6]} 28. Kxg2 {[%clk 0:01:31.2]} 28... Qxf4 {[%clk
0:01:00.8]} 29. Rg3 {[%clk 0:01:16.4]} 29... Rad8 {[%clk 0:00:59.5]} 30. Qa6
{[%clk 0:01:07.3]} 30... Qe4+ {[%clk 0:00:57.5]} 31. Kg1 {[%clk 0:01:04.2]}
31... Rd6 {[%clk 0:00:45.2]} 32. Qxa7 {[%clk 0:00:59.9]} 32... Rh6 {[%clk
0:00:45]} 33. Rg2 {[%clk 0:01:00.4]} 33... Qh4 {[%clk 0:00:44.7]} 34. f3 {[%clk
0:00:58.4]} 34... Qd4+ {[%clk 0:00:37.4]} 35. Rff2 {[%clk 0:00:56.1]} 35... Re8
{[%clk 0:00:35.3]} 36. Rg4 {[%clk 0:00:38.6]} 36... Re1+ {[%clk 0:00:29.8]} 37.
Kg2 {[%clk 0:00:38.9]} 37... Rh2+ {[%clk 0:00:29.5]} 38. Kxh2 {[%clk 0:00:38]}
38... Qxf2+ {[%clk 0:00:29.2]} 39. Kh3 {[%clk 0:00:38.3]} 39... Rh1# {[%clk
0:00:28.7]} 0-1

[Event "Early-Titled-Tuesday-Blitz-February-13-2024"]
[Site "Chess.com"]
[Date "2024.02.13"]
[Round "8"]
[White "HanSchut"]
[Black "dianamirza"]
[Result "1-0"]
[WhiteElo "2271"]
[BlackElo "1966"]
[TimeControl "180+1"]
[EndTime "9:31:33 PST"]
[Termination "HanSchut won by resignation"]

1. e4 {[%clk 0:03:00.9]} 1... d5 {[%clk 0:02:56.8]} 2. exd5 {[%clk 0:03:00.6]}
2... Qxd5 {[%clk 0:02:57.7]} 3. Nc3 {[%clk 0:03:00.8]} 3... Qd8 {[%clk
0:02:58.6]} 4. d4 {[%clk 0:03:01]} 4... Nf6 {[%clk 0:02:59.5]} 5. Nf3 {[%clk
0:03:01.2]} 5... Bg4 {[%clk 0:03:00.2]} 6. h3 {[%clk 0:02:49.1]} 6... Bxf3
{[%clk 0:03:00.3]} 7. Qxf3 {[%clk 0:02:49.9]} 7... c6 {[%clk 0:03:00.6]} 8. Bf4
{[%clk 0:02:47.3]} 8... Qxd4 {[%clk 0:02:59.7]} 9. Nb5 {[%clk 0:02:47.1]} 9...
cxb5 {[%clk 0:02:33.4]} 10. Bxb5+ {[%clk 0:02:43.5]} 10... Nbd7 {[%clk 0:02:29]}
11. Qxb7 {[%clk 0:02:32.2]} 11... Qe4+ {[%clk 0:02:18.9]} 12. Qxe4 {[%clk
0:02:29]} 12... Nxe4 {[%clk 0:02:19.8]} 13. O-O-O {[%clk 0:02:18]} 13... Nf6
{[%clk 0:02:10.2]} 14. Be5 {[%clk 0:02:12.2]} 14... Rd8 {[%clk 0:02:00.8]} 15.
Bxf6 {[%clk 0:02:11.2]} 15... gxf6 {[%clk 0:01:59.1]} 16. Rxd7 {[%clk
0:02:10.9]} 16... Rxd7 {[%clk 0:01:57.8]} 17. Rd1 {[%clk 0:02:11.6]} 17... Bh6+
{[%clk 0:01:55.5]} 18. Kb1 {[%clk 0:02:11.2]} 18... e5 {[%clk 0:01:31.9]} 19.
Rxd7 {[%clk 0:02:04.2]} 19... Kf8 {[%clk 0:01:24.5]} 20. Bc4 {[%clk 0:01:52.9]}
20... Bg5 {[%clk 0:01:11.3]} 21. Rxf7+ {[%clk 0:01:48.8]} 21... Ke8 {[%clk
0:01:10.9]} 22. Rxa7 {[%clk 0:01:48.5]} 22... Rf8 {[%clk 0:01:03.3]} 23. Bb5+
{[%clk 0:01:46.6]} 23... Kd8 {[%clk 0:01:01.4]} 24. Rxh7 {[%clk 0:01:35.4]}
24... f5 {[%clk 0:00:53.6]} 25. Ra7 {[%clk 0:01:27.1]} 25... e4 {[%clk
0:00:49.5]} 26. Ra8+ {[%clk 0:01:20.1]} 26... Ke7 {[%clk 0:00:48.9]} 27. Rxf8
{[%clk 0:01:21]} 27... Kxf8 {[%clk 0:00:49.5]} 28. a4 {[%clk 0:01:21.1]} 28...
f4 {[%clk 0:00:36.2]} 29. b3 {[%clk 0:01:08.8]} 29... Ke7 {[%clk 0:00:31.7]} 30.
Kb2 {[%clk 0:01:04.8]} 30... Kd6 {[%clk 0:00:32.2]} 31. c3 {[%clk 0:01:04.6]}
31... Kd5 {[%clk 0:00:13.5]} 32. Bc4+ {[%clk 0:01:00.6]} 32... Kc5 {[%clk
0:00:13.4]} 33. Be2 {[%clk 0:01:00.5]} 33... Kd5 {[%clk 0:00:02.7]} 34. b4
{[%clk 0:00:54.9]} 34... f3 {[%clk 0:00:01]} 35. gxf3 {[%clk 0:00:51.6]} 35...
exf3 {[%clk 0:00:01.9]} 36. Bxf3+ {[%clk 0:00:51.9]} 36... Kc4 {[%clk
0:00:02.8]} 37. Be2+ {[%clk 0:00:51]} 37... Kd5 {[%clk 0:00:02.5]} 1-0

[Event "Early-Titled-Tuesday-Blitz-February-13-2024"]
[Site "Chess.com"]
[Date "2024.02.13"]
[Round "8"]
[White "wild3000"]
[Black "Pertinhez76"]
[Result "0-1"]
[WhiteElo "2367"]
[BlackElo "2172"]
[TimeControl "180+1"]
[EndTime "9:31:34 PST"]
[Termination "Pertinhez76 won by resignation"]

1. a4 {[%clk 0:02:59.5]} 1... e5 {[%clk 0:02:58.4]} 2. h4 {[%clk 0:02:59.6]}
2... d5 {[%clk 0:02:57.9]} 3. h5 {[%clk 0:02:59.4]} 3... h6 {[%clk 0:02:56.9]}
4. a5 {[%clk 0:02:58.5]} 4... a6 {[%clk 0:02:55.8]} 5. d3 {[%clk 0:02:58.7]}
5... Nf6 {[%clk 0:02:55.7]} 6. Nc3 {[%clk 0:02:57.9]} 6... Nc6 {[%clk
0:02:55.7]} 7. e4 {[%clk 0:02:57.4]} 7... Bb4 {[%clk 0:02:54.4]} 8. exd5 {[%clk
0:02:56.8]} 8... Nxd5 {[%clk 0:02:53.1]} 9. Bd2 {[%clk 0:02:57.2]} 9... Bxc3
{[%clk 0:02:52.5]} 10. bxc3 {[%clk 0:02:58.1]} 10... O-O {[%clk 0:02:52.2]} 11.
Be2 {[%clk 0:02:54.4]} 11... Re8 {[%clk 0:02:52.2]} 12. Bf3 {[%clk 0:02:49.1]}
12... Be6 {[%clk 0:02:51.8]} 13. Ne2 {[%clk 0:02:48.9]} 13... Qf6 {[%clk
0:02:47.9]} 14. Ng3 {[%clk 0:02:46.3]} 14... Rab8 {[%clk 0:02:45.9]} 15. Ne4
{[%clk 0:02:45.7]} 15... Qe7 {[%clk 0:02:46]} 16. c4 {[%clk 0:02:41.5]} 16...
Nf4 {[%clk 0:02:44.3]} 17. g3 {[%clk 0:02:34.8]} 17... f5 {[%clk 0:02:43.1]} 18.
Nc3 {[%clk 0:02:22.3]} 18... e4 {[%clk 0:02:37.4]} 19. Bxf4 {[%clk 0:02:10.7]}
19... exf3 {[%clk 0:02:35.1]} 20. O-O {[%clk 0:02:05.2]} 20... Nd4 {[%clk
0:02:31.8]} 21. Be3 {[%clk 0:02:05]} 21... c5 {[%clk 0:02:30.6]} 22. Re1 {[%clk
0:01:58.4]} 22... Qf6 {[%clk 0:02:25.2]} 23. Bxd4 {[%clk 0:01:52.9]} 23... Qxd4
{[%clk 0:02:17.9]} 24. Na4 {[%clk 0:01:43.7]} 24... f4 {[%clk 0:02:09.5]} 25.
Qxf3 {[%clk 0:01:40.9]} 25... fxg3 {[%clk 0:02:09.7]} 26. Qxg3 {[%clk
0:01:40.7]} 26... Bf7 {[%clk 0:02:07.4]} 27. c3 {[%clk 0:01:23.8]} 27... Qf6
{[%clk 0:01:57]} 28. Nxc5 {[%clk 0:01:22.6]} 28... Bxh5 {[%clk 0:01:54.4]} 29.
Nd7 {[%clk 0:01:20]} 29... Qxc3 {[%clk 0:01:48.9]} 30. Rec1 {[%clk 0:01:07.8]}
30... Qd4 {[%clk 0:01:27.5]} 31. Nxb8 {[%clk 0:01:07.3]} 31... Re5 {[%clk
0:01:27.1]} 32. Kf1 {[%clk 0:00:51.7]} 32... Be2+ {[%clk 0:01:24.5]} 33. Kg2
{[%clk 0:00:41.6]} 33... Rg5 {[%clk 0:01:11.1]} 34. c5 {[%clk 0:00:34.1]} 34...
Qd5+ {[%clk 0:01:00]} 35. Kg1 {[%clk 0:00:30.2]} 35... Rxg3+ {[%clk 0:00:57.5]}
36. fxg3 {[%clk 0:00:31.1]} 36... Qe5 {[%clk 0:00:55.9]} 37. Kf2 {[%clk
0:00:30.1]} 37... Bg4 {[%clk 0:00:49.6]} 38. c6 {[%clk 0:00:23.5]} 38... Qe2+
{[%clk 0:00:45.4]} 39. Kg1 {[%clk 0:00:23.6]} 39... Bh3 {[%clk 0:00:44.8]} 0-1

[Event "Early-Titled-Tuesday-Blitz-February-13-2024"]
[Site "Chess.com"]
[Date "2024.02.13"]
[Round "8"]
[White "traviscottofficial"]
[Black "malakismayil"]
[Result "1-0"]
[WhiteElo "2670"]
[BlackElo "2517"]
[TimeControl "180+1"]
[EndTime "9:31:37 PST"]
[Termination "traviscottofficial won on time"]

1. Nf3 {[%clk 0:02:54.4]} 1... d5 {[%clk 0:02:58.9]} 2. c4 {[%clk 0:02:54.3]}
2... e6 {[%clk 0:02:57.4]} 3. cxd5 {[%clk 0:02:53.9]} 3... exd5 {[%clk
0:02:58.3]} 4. b3 {[%clk 0:02:49.1]} 4... Nf6 {[%clk 0:02:57.8]} 5. Bb2 {[%clk
0:02:49.3]} 5... Bd6 {[%clk 0:02:56.4]} 6. g3 {[%clk 0:02:49.9]} 6... O-O {[%clk
0:02:55.9]} 7. Bg2 {[%clk 0:02:50.6]} 7... Re8 {[%clk 0:02:56.1]} 8. O-O {[%clk
0:02:51]} 8... c6 {[%clk 0:02:56.5]} 9. d3 {[%clk 0:02:51]} 9... Bg4 {[%clk
0:02:57]} 10. Nbd2 {[%clk 0:02:50.9]} 10... Nbd7 {[%clk 0:02:56.7]} 11. Re1
{[%clk 0:02:51.1]} 11... h6 {[%clk 0:02:53]} 12. Qc2 {[%clk 0:02:50.9]} 12...
Qb6 {[%clk 0:02:43.9]} 13. e4 {[%clk 0:02:49.9]} 13... Bc5 {[%clk 0:01:50.1]}
14. Re2 {[%clk 0:02:16.4]} 14... Rad8 {[%clk 0:01:48.2]} 15. d4 {[%clk 0:02:13]}
15... dxe4 {[%clk 0:01:21.6]} 16. dxc5 {[%clk 0:02:09]} 16... Nxc5 {[%clk
0:01:20.5]} 17. Bxf6 {[%clk 0:01:53.5]} 17... exf3 {[%clk 0:00:41.6]} 18. Bxd8
{[%clk 0:01:52.7]} 18... fxe2 {[%clk 0:00:31.6]} 19. Bxb6 {[%clk 0:01:51.6]}
19... e1=Q+ {[%clk 0:00:32.2]} 20. Rxe1 {[%clk 0:01:50.4]} 20... Rxe1+ {[%clk
0:00:33.1]} 21. Bf1 {[%clk 0:01:37.8]} 21... axb6 {[%clk 0:00:34]} 22. f3 {[%clk
0:01:31.2]} 22... Be6 {[%clk 0:00:25.5]} 23. Kf2 {[%clk 0:01:30.6]} 23... Re5
{[%clk 0:00:21.1]} 24. Nc4 {[%clk 0:01:28.6]} 24... Rh5 {[%clk 0:00:15.9]} 25.
h4 {[%clk 0:01:28.7]} 25... b5 {[%clk 0:00:10.9]} 26. Ne3 {[%clk 0:01:25.5]}
26... Nd7 {[%clk 0:00:07]} 27. Qd2 {[%clk 0:01:19.5]} 27... Rc5 {[%clk
0:00:04.8]} 28. b4 {[%clk 0:01:17.5]} 28... Re5 {[%clk 0:00:04.9]} 29. Qd6
{[%clk 0:01:16.1]} 29... Kh7 {[%clk 0:00:01.9]} 30. Bd3+ {[%clk 0:01:15.6]}
30... g6 {[%clk 0:00:02]} 31. f4 {[%clk 0:01:12.1]} 31... Rh5 {[%clk 0:00:02.5]}
32. Qe7 {[%clk 0:00:49.5]} 32... Nf6 {[%clk 0:00:03]} 33. Qxf6 {[%clk
0:00:49.3]} 1-0